[Event "*** Titled Tuesday Blitz"]
[Site "Chess.com"]
[Date "2020.05.12"]
[Round "7"]
[White "IMTominho"]
[Black "FelixJoseYnojosa"]
[Result "1/2-1/2"]
[WhiteElo "2826"]
[BlackElo "2630"]
[TimeControl "180+1"]
[EndTime "11:17:39 PDT"]
[Termination "Game drawn - insufficient material"]

1. d4 {[%clk 0:03:00.9]} 1... Nf6 {[%clk 0:02:59.4]} 2. Bg5 {[%clk 0:03:00.1]}
2... c5 {[%clk 0:02:59.4]} 3. d5 {[%clk 0:02:59.7]} 3... b5 {[%clk 0:02:58.9]}
4. Bxf6 {[%clk 0:02:58.6]} 4... gxf6 {[%clk 0:02:59.2]} 5. e4 {[%clk 0:02:58.5]}
5... b4 {[%clk 0:02:59.5]} 6. Qh5 {[%clk 0:02:55.2]} 6... d6 {[%clk 0:02:54]} 7.
Nd2 {[%clk 0:02:49.3]} 7... Nd7 {[%clk 0:02:53.1]} 8. f4 {[%clk 0:02:41.4]} 8...
Bg7 {[%clk 0:02:42.2]} 9. Bb5 {[%clk 0:02:30.2]} 9... f5 {[%clk 0:02:32.4]} 10.
e5 {[%clk 0:02:23.2]} 10... O-O {[%clk 0:02:26.4]} 11. Bxd7 {[%clk 0:02:21]}
11... Bxd7 {[%clk 0:02:24.8]} 12. O-O-O {[%clk 0:02:16]} 12... dxe5 {[%clk
0:02:21.8]} 13. fxe5 {[%clk 0:02:15.4]} 13... Bxe5 {[%clk 0:02:21.9]} 14. Ngf3
{[%clk 0:02:13.3]} 14... Bg7 {[%clk 0:02:21.9]} 15. Nc4 {[%clk 0:02:03.9]} 15...
a5 {[%clk 0:02:21.9]} 16. Rhe1 {[%clk 0:01:56.5]} 16... a4 {[%clk 0:02:21.7]}
17. Nce5 {[%clk 0:01:49.1]} 17... b3 {[%clk 0:02:19.4]} 18. cxb3 {[%clk
0:01:11]} 18... h6 {[%clk 0:02:14.5]} 19. d6 {[%clk 0:00:47.3]} 19... e6 {[%clk
0:02:04]} 20. Nxd7 {[%clk 0:00:42.9]} 20... Qxd7 {[%clk 0:01:56.8]} 21. Ne5
{[%clk 0:00:42.3]} 21... Qa7 {[%clk 0:01:56.2]} 22. d7 {[%clk 0:00:33.1]} 22...
axb3 {[%clk 0:01:55.1]} 23. axb3 {[%clk 0:00:24.6]} 23... Qc7 {[%clk 0:01:49.9]}
24. Nc4 {[%clk 0:00:19.3]} 24... Rfd8 {[%clk 0:01:43]} 25. g4 {[%clk 0:00:18.2]}
25... Qf4+ {[%clk 0:01:38.3]} 26. Kc2 {[%clk 0:00:16.3]} 26... Qf2+ {[%clk
0:01:32.9]} 27. Kb1 {[%clk 0:00:15.9]} 27... Rxd7 {[%clk 0:01:29.8]} 28. gxf5
{[%clk 0:00:13.2]} 28... Rxd1+ {[%clk 0:01:26.3]} 29. Rxd1 {[%clk 0:00:14.1]}
29... exf5 {[%clk 0:01:19.9]} 30. Qh3 {[%clk 0:00:13.1]} 30... Re8 {[%clk
0:01:14.6]} 31. Rf1 {[%clk 0:00:11.9]} 31... Re1+ {[%clk 0:01:09.9]} 32. Rxe1
{[%clk 0:00:12.2]} 32... Qxe1+ {[%clk 0:01:10.5]} 33. Ka2 {[%clk 0:00:13.1]}
33... Qe4 {[%clk 0:01:03.1]} 34. Nd6 {[%clk 0:00:11.4]} 34... Qd4 {[%clk
0:01:02.1]} 35. Nc4 {[%clk 0:00:11]} 35... Qe4 {[%clk 0:00:59.8]} 36. Nd6 {[%clk
0:00:10.8]} 36... Qa8+ {[%clk 0:00:58.8]} 37. Kb1 {[%clk 0:00:09.9]} 37... f4
{[%clk 0:00:41.5]} 38. Qf5 {[%clk 0:00:09.5]} 38... Qh1+ {[%clk 0:00:36.1]} 39.
Ka2 {[%clk 0:00:09.4]} 39... Qa8+ {[%clk 0:00:35]} 40. Kb1 {[%clk 0:00:09.3]}
40... Qg2 {[%clk 0:00:26.2]} 41. Qxf7+ {[%clk 0:00:08.7]} 41... Kh7 {[%clk
0:00:20.1]} 42. Qf5+ {[%clk 0:00:08.4]} 42... Qg6 {[%clk 0:00:20.6]} 43. Kc2
{[%clk 0:00:07.4]} 43... Qxf5+ {[%clk 0:00:14.6]} 44. Nxf5 {[%clk 0:00:08.3]}
44... Kg6 {[%clk 0:00:12.1]} 45. Nxg7 {[%clk 0:00:06.6]} 45... Kxg7 {[%clk
0:00:12.4]} 46. Kd3 {[%clk 0:00:06.8]} 46... Kf6 {[%clk 0:00:13]} 47. Ke4 {[%clk
0:00:06.8]} 47... Kg5 {[%clk 0:00:13.2]} 48. h3 {[%clk 0:00:05]} 48... h5 {[%clk
0:00:12.6]} 49. h4+ {[%clk 0:00:05.2]} 49... Kxh4 {[%clk 0:00:12.6]} 50. Kxf4
{[%clk 0:00:04.5]} 50... Kh3 {[%clk 0:00:12.9]} 51. Kf3 {[%clk 0:00:02.5]} 51...
Kh4 {[%clk 0:00:13.1]} 52. Kf4 {[%clk 0:00:02.8]} 52... Kh3 {[%clk 0:00:13.5]}
53. Kf3 {[%clk 0:00:03.4]} 53... Kh2 {[%clk 0:00:12.9]} 54. Kf2 {[%clk
0:00:03.9]} 54... h4 {[%clk 0:00:12.6]} 55. Kf3 {[%clk 0:00:04.3]} 55... Kg1
{[%clk 0:00:13.3]} 56. Kg4 {[%clk 0:00:04.2]} 56... Kf2 {[%clk 0:00:14]} 57.
Kxh4 {[%clk 0:00:04.7]} 57... Ke3 {[%clk 0:00:14.6]} 58. Kg4 {[%clk 0:00:05.3]}
58... Kd3 {[%clk 0:00:15.2]} 59. Kf4 {[%clk 0:00:05.7]} 59... Kc2 {[%clk
0:00:15.8]} 60. Ke5 {[%clk 0:00:06.2]} 60... Kxb2 {[%clk 0:00:15.9]} 61. Kd5
{[%clk 0:00:06.8]} 61... Kxb3 {[%clk 0:00:13.7]} 62. Kxc5 {[%clk 0:00:07.2]}
1/2-1/2

[Event "*** Titled Tuesday Blitz"]
[Site "Chess.com"]
[Date "2020.05.12"]
[Round "7"]
[White "Aureliano-Buendia"]
[Black "IMinTheWings"]
[Result "0-1"]
[WhiteElo "2389"]
[BlackElo "2226"]
[TimeControl "180+1"]
[EndTime "11:17:40 PDT"]
[Termination "IMinTheWings won by resignation"]

1. d4 {[%clk 0:02:29.7]} 1... Nf6 {[%clk 0:02:58.6]} 2. c4 {[%clk 0:02:29.8]}
2... e6 {[%clk 0:02:58.9]} 3. g3 {[%clk 0:02:29.9]} 3... c5 {[%clk 0:02:58.8]}
4. d5 {[%clk 0:02:30.2]} 4... exd5 {[%clk 0:02:59.4]} 5. cxd5 {[%clk 0:02:31.1]}
5... d6 {[%clk 0:02:59.8]} 6. Nc3 {[%clk 0:02:31.4]} 6... g6 {[%clk 0:02:59.9]}
7. Nf3 {[%clk 0:02:31.9]} 7... Bg7 {[%clk 0:03:00.4]} 8. Bg2 {[%clk 0:02:32.8]}
8... O-O {[%clk 0:03:00.9]} 9. O-O {[%clk 0:02:33.7]} 9... Re8 {[%clk
0:03:01.1]} 10. Nd2 {[%clk 0:02:33.7]} 10... a6 {[%clk 0:03:01]} 11. a4 {[%clk
0:02:33.7]} 11... Nbd7 {[%clk 0:02:59]} 12. Qb3 {[%clk 0:02:34]} 12... Qc7
{[%clk 0:02:55]} 13. Nc4 {[%clk 0:02:30.7]} 13... Rb8 {[%clk 0:02:53.6]} 14. e4
{[%clk 0:02:28.6]} 14... b6 {[%clk 0:02:22.7]} 15. f4 {[%clk 0:01:55]} 15... Rb7
{[%clk 0:02:03.9]} 16. e5 {[%clk 0:01:50.6]} 16... dxe5 {[%clk 0:01:56.8]} 17.
d6 {[%clk 0:01:49.5]} 17... Qb8 {[%clk 0:01:55.3]} 18. f5 {[%clk 0:01:33.3]}
18... b5 {[%clk 0:01:48.3]} 19. axb5 {[%clk 0:01:30.5]} 19... axb5 {[%clk
0:01:49.2]} 20. Na5 {[%clk 0:01:30.1]} 20... Rb6 {[%clk 0:01:46.5]} 21. fxg6
{[%clk 0:01:24.8]} 21... hxg6 {[%clk 0:01:45.1]} 22. Nd5 {[%clk 0:01:18.6]}
22... Rxd6 {[%clk 0:01:41.3]} 23. Ne3 {[%clk 0:01:03.7]} 23... c4 {[%clk
0:01:39.3]} 24. Qb4 {[%clk 0:01:00.5]} 24... Qb6 {[%clk 0:01:37.5]} 25. Kh1
{[%clk 0:00:57.8]} 25... Qc5 {[%clk 0:01:33.5]} 26. Qe1 {[%clk 0:00:53]} 26...
e4 {[%clk 0:01:19.7]} 27. b4 {[%clk 0:00:36.5]} 27... Qb6 {[%clk 0:01:06.5]} 28.
Naxc4 {[%clk 0:00:27.9]} 28... bxc4 {[%clk 0:01:06.5]} 29. Nxc4 {[%clk
0:00:27.9]} 29... Qc6 {[%clk 0:01:01.2]} 30. Nxd6 {[%clk 0:00:28.2]} 30... Qxd6
{[%clk 0:01:02.1]} 31. Bf4 {[%clk 0:00:27.1]} 31... Qe7 {[%clk 0:00:51.4]} 32.
b5 {[%clk 0:00:26.4]} 32... Nd5 {[%clk 0:00:45.3]} 33. Rb1 {[%clk 0:00:22.7]}
33... Nc3 {[%clk 0:00:39.1]} 34. Rb3 {[%clk 0:00:21.6]} 34... Nd5 {[%clk
0:00:35.8]} 35. Qd2 {[%clk 0:00:18.2]} 35... N7b6 {[%clk 0:00:35.3]} 36. Be3
{[%clk 0:00:15.7]} 36... Nxe3 {[%clk 0:00:31.8]} 37. Qxe3 {[%clk 0:00:16]} 37...
Qb7 {[%clk 0:00:20.4]} 38. Rb4 {[%clk 0:00:14.5]} 38... Nd5 {[%clk 0:00:19.2]}
39. Rxe4 {[%clk 0:00:10.4]} 39... Be6 {[%clk 0:00:15.4]} 40. Qd2 {[%clk
0:00:09.6]} 40... Qxb5 {[%clk 0:00:15.4]} 41. Ree1 {[%clk 0:00:09.2]} 41... Bc3
{[%clk 0:00:14.3]} 42. Qe2 {[%clk 0:00:08.4]} 42... Qc5 {[%clk 0:00:10.9]} 43.
Rc1 {[%clk 0:00:09]} 43... Qd4 {[%clk 0:00:10.7]} 44. Rfd1 {[%clk 0:00:07.8]}
44... Qc5 {[%clk 0:00:08.2]} 45. Qd3 {[%clk 0:00:07.7]} 45... Qe3 {[%clk
0:00:02.7]} 46. Qxe3 {[%clk 0:00:07.5]} 46... Nxe3 {[%clk 0:00:03]} 47. Re1
{[%clk 0:00:07.4]} 47... Nxg2 {[%clk 0:00:03.3]} 48. Kxg2 {[%clk 0:00:06.5]}
48... Bd5+ {[%clk 0:00:03.4]} 49. Kf2 {[%clk 0:00:06.4]} 49... Bxe1+ {[%clk
0:00:03.2]} 50. Rxe1 {[%clk 0:00:07]} 50... Rxe1 {[%clk 0:00:03.8]} 51. Kxe1
{[%clk 0:00:07.9]} 51... Kg7 {[%clk 0:00:04.7]} 52. h3 {[%clk 0:00:08.2]} 52...
Kf6 {[%clk 0:00:05.6]} 53. Kf2 {[%clk 0:00:09.1]} 53... Be6 {[%clk 0:00:06.3]}
54. Ke3 {[%clk 0:00:10]} 54... Bxh3 {[%clk 0:00:06.4]} 0-1

[Event "*** Titled Tuesday Blitz"]
[Site "Chess.com"]
[Date "2020.05.12"]
[Round "7"]
[White "earling8018"]
[Black "Azoulas1"]
[Result "0-1"]
[WhiteElo "2014"]
[BlackElo "1924"]
[TimeControl "180+1"]
[EndTime "11:17:40 PDT"]
[Termination "Azoulas1 won by resignation"]

1. d4 {[%clk 0:03:00.9]} 1... Nf6 {[%clk 0:02:58.1]} 2. c4 {[%clk 0:03:00.7]}
2... e6 {[%clk 0:02:56.2]} 3. Nc3 {[%clk 0:02:58.8]} 3... Bb4 {[%clk 0:02:53.8]}
4. Nf3 {[%clk 0:02:58.3]} 4... O-O {[%clk 0:02:52.1]} 5. e3 {[%clk 0:02:58.4]}
5... b6 {[%clk 0:02:51.5]} 6. Be2 {[%clk 0:02:55.2]} 6... Bxc3+ {[%clk
0:02:49.7]} 7. bxc3 {[%clk 0:02:54.5]} 7... Bb7 {[%clk 0:02:49.6]} 8. O-O {[%clk
0:02:54.3]} 8... Ne4 {[%clk 0:02:48.2]} 9. Qc2 {[%clk 0:02:52.5]} 9... d6 {[%clk
0:02:47.1]} 10. Bd3 {[%clk 0:02:41.9]} 10... f5 {[%clk 0:02:44.6]} 11. d5 {[%clk
0:02:35.8]} 11... exd5 {[%clk 0:02:36.4]} 12. Nd4 {[%clk 0:02:30.1]} 12... Qf6
{[%clk 0:02:25.6]} 13. cxd5 {[%clk 0:02:28.5]} 13... Bxd5 {[%clk 0:02:24.7]} 14.
c4 {[%clk 0:02:28.2]} 14... Bb7 {[%clk 0:02:22.3]} 15. Bb2 {[%clk 0:02:28.3]}
15... Nd7 {[%clk 0:02:14.7]} 16. f3 {[%clk 0:02:08]} 16... Nec5 {[%clk
0:02:11.3]} 17. Nxf5 {[%clk 0:02:07.5]} 17... Qe6 {[%clk 0:02:03.7]} 18. e4
{[%clk 0:01:57.5]} 18... Rxf5 {[%clk 0:01:56.7]} 19. exf5 {[%clk 0:01:49.9]}
19... Qe3+ {[%clk 0:01:56.1]} 20. Kh1 {[%clk 0:01:48.2]} 20... Qxd3 {[%clk
0:01:55.1]} 21. Qc3 {[%clk 0:01:26.6]} 21... Qxc3 {[%clk 0:01:53.9]} 22. Bxc3
{[%clk 0:01:26.3]} 22... Rf8 {[%clk 0:01:53.3]} 23. g4 {[%clk 0:01:22.6]} 23...
h5 {[%clk 0:01:48.5]} 24. h3 {[%clk 0:01:20.6]} 24... hxg4 {[%clk 0:01:39.9]}
25. hxg4 {[%clk 0:01:20.5]} 25... Nf6 {[%clk 0:01:39.6]} 26. Kh2 {[%clk
0:01:17.6]} 26... a5 {[%clk 0:01:25.8]} 27. Kg3 {[%clk 0:01:17]} 27... Nfe4+
{[%clk 0:01:22.9]} 28. fxe4 {[%clk 0:01:08.7]} 28... Nxe4+ {[%clk 0:01:22.2]}
29. Kf4 {[%clk 0:01:05.1]} 29... Nxc3 {[%clk 0:01:22.1]} 30. Rfe1 {[%clk
0:01:04.8]} 30... d5 {[%clk 0:01:14.6]} 31. Re3 {[%clk 0:00:46.2]} 31... d4
{[%clk 0:01:06.9]} 32. Re7 {[%clk 0:00:43.9]} 32... Rf7 {[%clk 0:01:04.1]} 33.
Rae1 {[%clk 0:00:40.2]} 33... Ne4 {[%clk 0:00:48.4]} 34. R7xe4 {[%clk
0:00:35.8]} 34... Bxe4 {[%clk 0:00:46.3]} 35. Rxe4 {[%clk 0:00:36.3]} 35... Rd7
{[%clk 0:00:45.7]} 36. Re2 {[%clk 0:00:32.5]} 36... Kf7 {[%clk 0:00:44.5]} 37.
Rd2 {[%clk 0:00:28.4]} 37... c5 {[%clk 0:00:42.6]} 38. Rb2 {[%clk 0:00:26.2]}
38... Rd6 {[%clk 0:00:38.1]} 39. Ke5 {[%clk 0:00:26.2]} 39... Ke7 {[%clk
0:00:33.1]} 40. g5 {[%clk 0:00:24.4]} 40... d3 {[%clk 0:00:27.1]} 41. Rd2 {[%clk
0:00:24.3]} 41... Rd4 {[%clk 0:00:26.5]} 42. f6+ {[%clk 0:00:24.4]} 42... gxf6+
{[%clk 0:00:25.7]} 43. gxf6+ {[%clk 0:00:23.7]} 43... Kf7 {[%clk 0:00:25.4]} 44.
a3 {[%clk 0:00:19.8]} 44... a4 {[%clk 0:00:24.6]} 45. Kf5 {[%clk 0:00:16.2]}
45... Rd6 {[%clk 0:00:23.4]} 46. Ke5 {[%clk 0:00:12.9]} 46... Rd4 {[%clk
0:00:19.1]} 47. Kf5 {[%clk 0:00:12.8]} 47... b5 {[%clk 0:00:18.4]} 48. cxb5
{[%clk 0:00:12.2]} 48... c4 {[%clk 0:00:18.1]} 49. Ke5 {[%clk 0:00:12.9]} 49...
Rd8 {[%clk 0:00:16.7]} 50. b6 {[%clk 0:00:10.4]} 50... c3 {[%clk 0:00:16.2]} 51.
Rh2 {[%clk 0:00:08]} 51... d2 {[%clk 0:00:14.4]} 52. Rh7+ {[%clk 0:00:07.6]}
52... Kg8 {[%clk 0:00:14.1]} 53. Rh1 {[%clk 0:00:06.8]} 53... d1=Q {[%clk
0:00:12.9]} 54. Rxd1 {[%clk 0:00:06.1]} 54... Rxd1 {[%clk 0:00:13.1]} 55. b7
{[%clk 0:00:04.7]} 55... Rd8 {[%clk 0:00:12.3]} 0-1

[Event "*** Titled Tuesday Blitz"]
[Site "Chess.com"]
[Date "2020.05.12"]
[Round "7"]
[White "Ginzburg_Yakov"]
[Black "Dinamo81"]
[Result "0-1"]
[WhiteElo "2391"]
[BlackElo "2613"]
[TimeControl "180+1"]
[EndTime "11:17:41 PDT"]
[Termination "Dinamo81 won by resignation"]

1. e4 {[%clk 0:03:00.7]} 1... d5 {[%clk 0:02:59.8]} 2. Nc3 {[%clk 0:02:59.7]}
2... dxe4 {[%clk 0:02:59]} 3. Nxe4 {[%clk 0:02:59.6]} 3... Qd5 {[%clk
0:02:59.5]} 4. Qf3 {[%clk 0:02:55.2]} 4... Nc6 {[%clk 0:02:49]} 5. c3 {[%clk
0:02:47.9]} 5... e5 {[%clk 0:02:47.2]} 6. Ng5 {[%clk 0:02:38.5]} 6... Qxf3
{[%clk 0:02:42.4]} 7. N1xf3 {[%clk 0:02:38.6]} 7... h6 {[%clk 0:02:41.6]} 8. Ne4
{[%clk 0:02:29.8]} 8... f5 {[%clk 0:02:41.3]} 9. Ng3 {[%clk 0:02:29.3]} 9... e4
{[%clk 0:02:32.7]} 10. Nh4 {[%clk 0:02:21.5]} 10... Nge7 {[%clk 0:02:31.6]} 11.
Be2 {[%clk 0:02:15.6]} 11... Be6 {[%clk 0:02:10.1]} 12. Bh5+ {[%clk 0:02:05.7]}
12... Kd7 {[%clk 0:02:07.2]} 13. Bg6 {[%clk 0:02:01.2]} 13... Nxg6 {[%clk
0:02:01.3]} 14. Nxg6 {[%clk 0:02:00.9]} 14... Rg8 {[%clk 0:02:01.7]} 15. O-O
{[%clk 0:01:48.6]} 15... Bc5 {[%clk 0:01:41]} 16. d4 {[%clk 0:01:33.9]} 16...
exd3 {[%clk 0:01:36.7]} 17. Rd1 {[%clk 0:01:33.7]} 17... Rad8 {[%clk 0:01:29.2]}
18. Be3 {[%clk 0:01:30.7]} 18... Bd6 {[%clk 0:01:10.1]} 19. Rxd3 {[%clk
0:01:26.1]} 19... Kc8 {[%clk 0:01:10.7]} 20. Rad1 {[%clk 0:01:24.5]} 20... Bf7
{[%clk 0:00:56.9]} 21. Nf4 {[%clk 0:00:59.5]} 21... g5 {[%clk 0:00:54.2]} 22.
Nxf5 {[%clk 0:00:59.5]} 22... Bxf4 {[%clk 0:00:42.7]} 23. Bxf4 {[%clk
0:00:58.4]} 23... gxf4 {[%clk 0:00:40.8]} 24. Nxh6 {[%clk 0:00:58.2]} 24... Rxd3
{[%clk 0:00:37.5]} 25. Rxd3 {[%clk 0:00:57.7]} 25... Rf8 {[%clk 0:00:36.1]} 26.
Nxf7 {[%clk 0:00:53.2]} 26... Rxf7 {[%clk 0:00:37]} 27. h4 {[%clk 0:00:46.7]}
27... Rf5 {[%clk 0:00:16.2]} 28. Kh2 {[%clk 0:00:45.6]} 28... Ne5 {[%clk
0:00:16.7]} 29. Rd4 {[%clk 0:00:36.4]} 29... c5 {[%clk 0:00:15.2]} 30. Rd6
{[%clk 0:00:33.8]} 30... Kc7 {[%clk 0:00:14.7]} 31. Rd1 {[%clk 0:00:29.2]} 31...
Ng4+ {[%clk 0:00:13.3]} 32. Kg1 {[%clk 0:00:26.9]} 32... Re5 {[%clk 0:00:12.4]}
33. f3 {[%clk 0:00:18.4]} 33... Ne3 {[%clk 0:00:12.5]} 34. Re1 {[%clk
0:00:10.1]} 34... Kd6 {[%clk 0:00:12.6]} 35. Kf2 {[%clk 0:00:09.5]} 35... Nf5
{[%clk 0:00:12.7]} 36. Rd1+ {[%clk 0:00:08.8]} 36... Rd5 {[%clk 0:00:11.4]} 37.
Rxd5+ {[%clk 0:00:05.6]} 37... Kxd5 {[%clk 0:00:12.3]} 38. h5 {[%clk 0:00:06.2]}
38... Ke5 {[%clk 0:00:11.9]} 39. Ke2 {[%clk 0:00:06.4]} 39... c4 {[%clk
0:00:11.9]} 40. b3 {[%clk 0:00:06.5]} 40... b5 {[%clk 0:00:12.1]} 41. bxc4
{[%clk 0:00:07.1]} 41... bxc4 {[%clk 0:00:13]} 42. Kd2 {[%clk 0:00:07.1]} 42...
Kf6 {[%clk 0:00:12.9]} 43. Kc2 {[%clk 0:00:07.5]} 43... Ne3+ {[%clk 0:00:11.8]}
44. Kb2 {[%clk 0:00:07.9]} 44... Nxg2 {[%clk 0:00:12.3]} 45. Ka3 {[%clk
0:00:08.5]} 45... Ne1 {[%clk 0:00:12]} 46. Kb4 {[%clk 0:00:08.8]} 46... Nxf3
{[%clk 0:00:12.6]} 47. Kxc4 {[%clk 0:00:09.7]} 47... Ne5+ {[%clk 0:00:12.5]} 48.
Kd4 {[%clk 0:00:08.9]} 48... Kg5 {[%clk 0:00:11.7]} 49. Ke4 {[%clk 0:00:08.5]}
49... f3 {[%clk 0:00:11.9]} 50. Ke3 {[%clk 0:00:08.8]} 50... Kxh5 {[%clk
0:00:12.1]} 51. c4 {[%clk 0:00:09.4]} 51... Kg4 {[%clk 0:00:12.4]} 52. Ke4
{[%clk 0:00:05.8]} 52... f2 {[%clk 0:00:12.1]} 53. Kxe5 {[%clk 0:00:05.9]} 53...
f1=Q {[%clk 0:00:12.3]} 0-1

[Event "*** Titled Tuesday Blitz"]
[Site "Chess.com"]
[Date "2020.05.12"]
[Round "7"]
[White "PelinGorki"]
[Black "Riazantsev"]
[Result "1/2-1/2"]
[WhiteElo "2488"]
[BlackElo "2653"]
[TimeControl "180+1"]
[EndTime "11:17:45 PDT"]
[Termination "Game drawn - insufficient material"]

1. e4 {[%clk 0:03:00.9]} 1... Nf6 {[%clk 0:02:56]} 2. Nc3 {[%clk 0:03:00.4]}
2... d5 {[%clk 0:02:55.3]} 3. e5 {[%clk 0:02:57.7]} 3... d4 {[%clk 0:02:55.8]}
4. Nce2 {[%clk 0:02:58.2]} 4... Ng4 {[%clk 0:02:47.6]} 5. f4 {[%clk 0:02:52.5]}
5... c5 {[%clk 0:02:47.5]} 6. Ng3 {[%clk 0:02:48.5]} 6... g6 {[%clk 0:02:38.2]}
7. Nf3 {[%clk 0:02:46.3]} 7... Nc6 {[%clk 0:02:37.5]} 8. Bc4 {[%clk 0:02:40.6]}
8... Na5 {[%clk 0:02:37.4]} 9. Bb5+ {[%clk 0:02:09.3]} 9... Bd7 {[%clk
0:02:37.2]} 10. Bxd7+ {[%clk 0:02:09.6]} 10... Qxd7 {[%clk 0:02:38.1]} 11. Ng5
{[%clk 0:02:09.2]} 11... h6 {[%clk 0:02:18.9]} 12. e6 {[%clk 0:02:02.8]} 12...
fxe6 {[%clk 0:02:19.4]} 13. Qxg4 {[%clk 0:02:02.3]} 13... hxg5 {[%clk
0:02:19.8]} 14. Qxg5 {[%clk 0:01:57.9]} 14... O-O-O {[%clk 0:02:19.9]} 15. Qxc5+
{[%clk 0:01:58]} 15... Nc6 {[%clk 0:02:20.1]} 16. d3 {[%clk 0:01:54.1]} 16... e5
{[%clk 0:02:16.1]} 17. fxe5 {[%clk 0:01:24.4]} 17... Qg4 {[%clk 0:02:16.1]} 18.
Qc4 {[%clk 0:01:25.1]} 18... Kb8 {[%clk 0:02:06.5]} 19. O-O {[%clk 0:01:02.9]}
19... e6 {[%clk 0:01:52]} 20. Bf4 {[%clk 0:00:56.3]} 20... g5 {[%clk 0:01:29.6]}
21. Bd2 {[%clk 0:00:41.3]} 21... Qh4 {[%clk 0:01:29.7]} 22. Qxe6 {[%clk
0:00:29.6]} 22... Qxh2+ {[%clk 0:01:29.1]} 23. Kf2 {[%clk 0:00:29.9]} 23... Bc5
{[%clk 0:01:26.9]} 24. Rh1 {[%clk 0:00:28.5]} 24... Rdf8+ {[%clk 0:01:14.6]} 25.
Nf5 {[%clk 0:00:19]} 25... Qxe5 {[%clk 0:00:46.9]} 26. Qxe5+ {[%clk 0:00:14.1]}
26... Nxe5 {[%clk 0:00:47.6]} 27. Rxh8 {[%clk 0:00:14]} 27... Rxh8 {[%clk
0:00:48.5]} 28. Bxg5 {[%clk 0:00:06]} 28... Rf8 {[%clk 0:00:48.1]} 29. g4 {[%clk
0:00:06.5]} 29... Nxg4+ {[%clk 0:00:47.2]} 30. Kg3 {[%clk 0:00:07]} 30... Rxf5
{[%clk 0:00:44.1]} 31. Kxg4 {[%clk 0:00:07.1]} 31... Rf2 {[%clk 0:00:44.1]} 32.
c3 {[%clk 0:00:05.7]} 32... Rxb2 {[%clk 0:00:42.4]} 33. Bf4+ {[%clk 0:00:04.5]}
33... Ka8 {[%clk 0:00:41.4]} 34. cxd4 {[%clk 0:00:03.8]} 34... Bxd4 {[%clk
0:00:41.8]} 35. Rh1 {[%clk 0:00:02.7]} 35... a5 {[%clk 0:00:39.5]} 36. Rh5
{[%clk 0:00:02.2]} 36... Rxa2 {[%clk 0:00:38.3]} 37. Rd5 {[%clk 0:00:02.6]}
37... Bc3 {[%clk 0:00:31.5]} 38. Rd8+ {[%clk 0:00:02.3]} 38... Ka7 {[%clk
0:00:31]} 39. Be3+ {[%clk 0:00:03.2]} 39... Ka6 {[%clk 0:00:30.8]} 40. Rd6+
{[%clk 0:00:03.8]} 40... Kb5 {[%clk 0:00:29.1]} 41. Rb6+ {[%clk 0:00:04.7]}
41... Ka4 {[%clk 0:00:29.7]} 42. Rxb7 {[%clk 0:00:05.6]} 42... Bb4 {[%clk
0:00:26.8]} 43. d4 {[%clk 0:00:05.4]} 43... Ra3 {[%clk 0:00:24.6]} 44. Bf2
{[%clk 0:00:04.8]} 44... Rd3 {[%clk 0:00:23.2]} 45. Kf4 {[%clk 0:00:03.7]} 45...
Kb3 {[%clk 0:00:22.8]} 46. Ke4 {[%clk 0:00:04]} 46... Rd1 {[%clk 0:00:22.5]} 47.
d5 {[%clk 0:00:03.9]} 47... Kc4 {[%clk 0:00:21.8]} 48. Rc7+ {[%clk 0:00:03.5]}
48... Kb5 {[%clk 0:00:21.7]} 49. Rb7+ {[%clk 0:00:03.9]} 49... Kc4 {[%clk
0:00:22.1]} 50. Rc7+ {[%clk 0:00:03.9]} 50... Kb3 {[%clk 0:00:22.6]} 51. Rb7
{[%clk 0:00:04.3]} 51... Kc3 {[%clk 0:00:19.3]} 52. Bd4+ {[%clk 0:00:04.5]}
52... Kc4 {[%clk 0:00:17.9]} 53. Be3 {[%clk 0:00:04.4]} 53... Kb3 {[%clk
0:00:18.5]} 54. Bc5 {[%clk 0:00:03.7]} 54... Re1+ {[%clk 0:00:15.9]} 55. Kf5
{[%clk 0:00:03.6]} 55... Kc4 {[%clk 0:00:15.8]} 56. Bxb4 {[%clk 0:00:03.9]}
56... axb4 {[%clk 0:00:16]} 57. d6 {[%clk 0:00:04.8]} 57... Rd1 {[%clk
0:00:14.9]} 58. d7 {[%clk 0:00:04.4]} 58... b3 {[%clk 0:00:14.8]} 59. Ke6 {[%clk
0:00:04]} 59... Kc3 {[%clk 0:00:15]} 60. Rb6 {[%clk 0:00:03.3]} 60... b2 {[%clk
0:00:14.6]} 61. Rc6+ {[%clk 0:00:03.7]} 61... Kb3 {[%clk 0:00:14.1]} 62. Rb6+
{[%clk 0:00:04]} 62... Kc2 {[%clk 0:00:14.3]} 63. Rxb2+ {[%clk 0:00:04.1]} 63...
Kxb2 {[%clk 0:00:14.3]} 64. Ke7 {[%clk 0:00:05]} 64... Rxd7+ {[%clk 0:00:14.2]}
65. Kxd7 {[%clk 0:00:05.4]} 1/2-1/2